[Event "XI Continental-ch America 2016"]
[Site "San Salvador"]
[Date "2016.05.28"]
[Round "1"]
[White "Ortiz Suarez, Isan Reynaldo"]
[Black "Moccero, Eduardo"]
[Result "1-0"]
[ECO "A06"]
[WhiteElo "2578"]
[BlackElo "1981"]
[PlyCount "57"]
[EventDate "2016.??.??"]
[EventCountry "ESA"]
[TimeControl "40/5400+30:1800+30"]
[WhiteClock "0:53:27"]
[BlackClock "0:49:53"]

1. Nf3 {[%emt 0:00:00]} d5 {[%emt 0:00:00]} 2. g3 {[%emt 0:00:00]} Nf6 {
[%emt 0:00:00]} 3. Bg2 {[%emt 0:00:05]} c5 {[%emt 0:00:07]} 4. c4 {[%emt 0:00:
21]} e6 {[%emt 0:00:16]} 5. O-O {[%emt 0:00:33]} Nc6 {[%emt 0:00:17]} 6. b3 {
[%emt 0:01:53]} Be7 {[%emt 0:00:27]} 7. Bb2 {[%emt 0:00:07]} O-O {[%emt 0:00:
11]} 8. e3 {[%emt 0:01:08]} b6 {[%emt 0:02:47]} 9. Nc3 {[%emt 0:00:29]} Bb7 {
[%emt 0:00:46]} 10. cxd5 {[%emt 0:00:25]} exd5 {[%emt 0:00:32]} 11. d4 {
[%emt 0:00:20]} Qc7 {[%emt 0:02:45]} 12. dxc5 {[%emt 0:06:11]} bxc5 {[%emt 0:
00:20]} 13. Nxd5 {[%emt 0:11:19]} Nxd5 {[%emt 0:00:15]} 14. Qxd5 {[%emt 0:00:
04]} Rad8 {[%emt 0:00:59]} 15. Qh5 {[%emt 0:01:11]} Nb4 {[%emt 0:05:29]} 16.
Rfd1 {[%emt 0:05:51]} Nd3 {[%emt 0:03:13]} 17. Bc3 {[%emt 0:02:19]} Rd5 {
[%emt 0:03:58]} 18. Qg4 {[%emt 0:00:23]} g6 {[%emt 0:01:45]} 19. Ne1 {[%emt 0:
07:38]} Rg5 {[%emt 0:05:21]} 20. Qc4 {[%emt 0:00:59]} Bxg2 {[%emt 0:02:28]} 21.
Nxg2 {[%emt 0:00:30]} Ne5 {[%emt 0:03:39]} 22. Bxe5 {[%emt 0:00:05]} Rxe5 {
[%emt 0:00:35]} 23. Nf4 {[%emt 0:01:52]} Re8 {[%emt 0:08:15]} 24. Rd3 {[%emt 0:
01:06]} Bf8 {[%emt 0:02:05]} 25. Rad1 {[%emt 0:02:08]} Re4 {[%emt 0:03:09]} 26.
Qb5 {[%emt 0:03:02]} Qb6 {[%emt 0:03:32]} 27. Qxb6 {[%emt 0:00:38]} axb6 {
[%emt 0:00:07]} 28. Nd5 {[%emt 0:00:03]} R8e6 {[%emt 0:00:49]} 29. Nc3 {
[%emt 0:00:23]} 1-0

[Event "XI Continental-ch America 2016"]
[Site "San Salvador"]
[Date "2016.05.28"]
[Round "1"]
[White "Mareco, Sandro"]
[Black "Sarat, Victor"]
[Result "1-0"]
[ECO "A06"]
[WhiteElo "2625"]
[BlackElo "2098"]
[PlyCount "43"]
[EventDate "2016.??.??"]
[EventCountry "ESA"]
[TimeControl "40/5400+30:1800+30"]
[WhiteClock "1:26:36"]
[BlackClock "0:30:01"]

1. Nf3 {[%emt 0:00:00]} d5 {[%emt 0:00:00]} 2. c4 {[%emt 0:00:00]} Nf6 {
[%emt 0:00:03]} 3. cxd5 {[%emt 0:00:00]} Nxd5 {[%emt 0:00:13]} 4. e4 {[%emt 0:
00:06]} Nf6 {[%emt 0:01:23]} 5. Nc3 {[%emt 0:00:06]} e6 {[%emt 0:01:01]} 6. d4
{[%emt 0:00:07]} Be7 {[%emt 0:01:22]} 7. Bd3 {[%emt 0:00:15]} c6 {[%emt 0:02:
27]} 8. O-O {[%emt 0:00:28]} h6 {[%emt 0:04:55]} 9. Qe2 {[%emt 0:00:08]} b6 {
[%emt 0:02:25]} 10. Bf4 {[%emt 0:01:50]} Bb7 {[%emt 0:02:33]} 11. Rad1 {
[%emt 0:00:09]} g5 {[%emt 0:03:16]} 12. Bg3 {[%emt 0:02:45]} Nh5 {[%emt 0:14:
01]} 13. d5 {[%emt 0:00:25]} Nxg3 {[%emt 0:02:07]} 14. fxg3 {[%emt 0:00:13]}
exd5 {[%emt 0:14:04]} 15. exd5 {[%emt 0:00:08]} O-O {[%emt 0:06:29]} 16. Ne5 {
[%emt 0:03:01]} Bc5+ {[%emt 0:04:12]} 17. Kh1 {[%emt 0:00:08]} Qe7 {[%emt 0:00:
36]} 18. Qe4 {[%emt 0:00:57]} f5 {[%emt 0:01:07]} 19. Rxf5 {[%emt 0:00:10]} Nd7
{[%emt 0:05:32]} 20. dxc6 {[%emt 0:00:37]} Rxf5 {[%emt 0:00:28]} 21. Bc4+ {
[%emt 0:02:21]} Kg7 {[%emt 0:02:15]} 22. Rxd7 1-0

[Event "XI Continental-ch America 2016"]
[Site "San Salvador"]
[Date "2016.05.28"]
[Round "1"]
[White "Chavez, Hector Eduardo"]
[Black "Lenderman, Aleksandr"]
[Result "0-1"]
[ECO "C00"]
[WhiteElo "2079"]
[BlackElo "2614"]
[PlyCount "44"]
[EventDate "2016.??.??"]
[EventCountry "ESA"]
[TimeControl "40/5400+30:1800+30"]
[WhiteClock "0:59:10"]
[BlackClock "1:13:06"]

1. e4 {[%emt 0:00:00]} e6 {[%emt 0:00:39]} 2. d3 {[%emt 0:00:00]} d5 {[%emt 0:
00:53]} 3. Nd2 {[%emt 0:00:00]} Nf6 {[%emt 0:01:02]} 4. g3 {[%emt 0:00:03]} Bc5
{[%emt 0:02:48]} 5. e5 {[%emt 0:02:42]} Nfd7 {[%emt 0:00:08]} 6. Ngf3 {[%emt 0:
00:09]} Bb6 {[%emt 0:01:36]} 7. Bg2 {[%emt 0:03:20]} Nc6 {[%emt 0:07:51]} 8.
Qe2 {[%emt 0:03:20]} Bd4 {[%emt 0:00:19]} 9. Nxd4 {[%emt 0:02:38]} Nxd4 {
[%emt 0:00:06]} 10. Qg4 {[%emt 0:00:16]} Nxc2+ {[%emt 0:00:47]} 11. Kd1 {
[%emt 0:00:04]} Nxa1 {[%emt 0:00:04]} 12. Qxg7 {[%emt 0:00:06]} Rf8 {[%emt 0:
00:10]} 13. Nf3 {[%emt 0:00:09]} Qe7 {[%emt 0:01:09]} 14. Bd2 {[%emt 0:07:06]}
Qc5 {[%emt 0:03:43]} 15. Ke2 {[%emt 0:00:09]} Nc2 {[%emt 0:00:20]} 16. Rc1 {
[%emt 0:00:14]} Nd4+ {[%emt 0:00:36]} 17. Nxd4 {[%emt 0:08:25]} Qxd4 {[%emt 0:
00:06]} 18. Bc3 {[%emt 0:00:25]} Qa4 {[%emt 0:03:13]} 19. h4 {[%emt 0:00:37]}
b6 {[%emt 0:01:15]} 20. Bd2 {[%emt 0:00:54]} c5 {[%emt 0:00:32]} 21. Rc4 {
[%emt 0:11:09]} dxc4 {[%emt 0:00:24]} 22. Bxa8 {[%emt 0:00:04]} cxd3+ {[%emt 0:
00:13]} 0-1

[Event "XI Continental-ch America 2016"]
[Site "San Salvador"]
[Date "2016.05.28"]
[Round "1"]
[White "Hernandez, Mauricio Daniel"]
[Black "Erenburg, Sergey"]
[Result "0-1"]
[ECO "D00"]
[WhiteElo "1986"]
[BlackElo "2587"]
[PlyCount "92"]
[EventDate "2016.??.??"]
[EventCountry "ESA"]
[TimeControl "40/5400+30:1800+30"]
[WhiteClock "0:03:24"]
[BlackClock "0:12:08"]

1. d4 {[%emt 0:00:03]} d5 {[%emt 0:00:00]} 2. Bg5 {[%emt 0:00:40]} h6 {[%emt 0:
00:00]} 3. Bh4 {[%emt 0:00:11]} c6 {[%emt 0:00:01]} 4. e3 {[%emt 0:01:45]} Qb6
{[%emt 0:00:48]} 5. b3 {[%emt 0:07:18]} e5 {[%emt 0:01:33]} 6. Nf3 {[%emt 0:01:
34]} Nd7 {[%emt 0:03:54]} 7. Bg3 {[%emt 0:19:10]} e4 {[%emt 0:00:30]} 8. Ne5 {
[%emt 0:01:50]} Ne7 {[%emt 0:06:27]} 9. Nxd7 {[%emt 0:07:48]} Bxd7 {[%emt 0:00:
16]} 10. Bd6 {[%emt 0:00:06]} Be6 {[%emt 0:08:35]} 11. c4 {[%emt 0:06:26]} Qd8
{[%emt 0:06:55]} 12. c5 {[%emt 0:03:56]} Nf5 {[%emt 0:08:27]} 13. Bxf8 {
[%emt 0:01:34]} Kxf8 {[%emt 0:00:03]} 14. Be2 {[%emt 0:01:26]} h5 {[%emt 0:07:
06]} 15. Nc3 {[%emt 0:05:14]} Qg5 {[%emt 0:02:20]} 16. g3 {[%emt 0:04:17]} h4 {
[%emt 0:04:30]} 17. g4 {[%emt 0:03:48]} Ne7 {[%emt 0:04:07]} 18. h3 {[%emt 0:
00:17]} f5 {[%emt 0:03:52]} 19. Qd2 {[%emt 0:03:48]} Kg8 {[%emt 0:10:24]} 20.
O-O-O {[%emt 0:00:51]} Rf8 {[%emt 0:00:09]} 21. gxf5 {[%emt 0:00:39]} Bxf5 {
[%emt 0:00:15]} 22. Rdg1 {[%emt 0:02:54]} Qf6 {[%emt 0:00:13]} 23. Rh2 {
[%emt 0:01:05]} Rh6 {[%emt 0:02:16]} 24. Nd1 {[%emt 0:03:26]} Rg6 {[%emt 0:00:
42]} 25. Bg4 {[%emt 0:02:55]} Bxg4 {[%emt 0:09:42]} 26. hxg4 {[%emt 0:01:20]}
Nf5 {[%emt 0:00:03]} 27. Qa5 {[%emt 0:02:50]} Nxd4 {[%emt 0:01:58]} 28. g5 {
[%emt 0:05:06]} Rxg5 {[%emt 0:04:38]} 29. Rxg5 {[%emt 0:02:08]} Qxg5 {[%emt 0:
00:17]} 30. Rh1 {[%emt 0:03:21]} Nf3 {[%emt 0:00:38]} 31. Qxa7 {[%emt 0:02:24]}
Qg2 {[%emt 0:02:33]} 32. Qxb7 {[%emt 0:00:05]} Qxh1 {[%emt 0:00:17]} 33. Qxc6 {
[%emt 0:00:03]} Ne5 {[%emt 0:05:26]} 34. Qxd5+ {[%emt 0:00:20]} Nf7 {[%emt 0:
00:05]} 35. b4 {[%emt 0:04:21]} Rd8 {[%emt 0:00:28]} 36. Qb3 {[%emt 0:01:31]}
Qxd1+ {[%emt 0:00:23]} 37. Qxd1 {[%emt 0:00:05]} Rxd1+ {[%emt 0:00:04]} 38.
Kxd1 {[%emt 0:00:05]} h3 {[%emt 0:00:04]} 39. c6 {[%emt 0:00:38]} h2 {[%emt 0:
00:05]} 40. b5 {[%emt 0:00:09]} h1=Q+ {[%emt 0:00:06]} 41. Kc2 {[%emt 0:30:22]}
Qf1 {[%emt 0:30:06]} 42. a4 {[%emt 0:00:17]} Qc4+ {[%emt 0:00:04]} 43. Kd2 {
[%emt 0:00:21]} Ne5 {[%emt 0:00:06]} 44. f4 {[%emt 0:00:56]} Nf3+ {[%emt 0:00:
10]} 45. Kd1 Qc3 {[%emt 0:00:12]} 46. Ke2 {[%emt 0:00:13]} Qe1# {[%emt 0:00:04]
} 0-1

[Event "XI Continental-ch America 2016"]
[Site "San Salvador"]
[Date "2016.05.28"]
[Round "1"]
[White "Giron, David"]
[Black "Bruzon Batista, Lazaro"]
[Result "0-1"]
[ECO "B52"]
[WhiteElo "2104"]
[BlackElo "2681"]
[PlyCount "36"]
[EventDate "2016.??.??"]
[EventCountry "ESA"]
[TimeControl "40/5400+30:1800+30"]
[WhiteClock "0:05:06"]
[BlackClock "0:19:15"]

1. e4 {[%emt 0:00:00]} c5 {[%emt 0:00:00]} 2. Nf3 {[%emt 0:00:00]} d6 {[%emt 0:
00:00]} 3. Bb5+ {[%emt 0:00:05]} Bd7 {[%emt 0:02:19]} 4. Bxd7+ {[%emt 0:01:08]}
Nxd7 {[%emt 0:00:05]} 5. c4 {[%emt 0:01:00]} Ngf6 {[%emt 0:00:49]} 6. Nc3 {
[%emt 0:00:08]} Rc8 {[%emt 0:00:31]} 7. d4 {[%emt 0:09:00]} cxd4 {[%emt 0:01:
26]} 8. Qxd4 {[%emt 0:00:08]} a6 {[%emt 0:02:32]} 9. O-O {[%emt 0:12:14]} g6 {
[%emt 0:08:20]} 10. b3 {[%emt 0:03:56]} Bg7 {[%emt 0:00:10]} 11. Bb2 {[%emt 0:
00:12]} Qa5 {[%emt 0:02:08]} 12. Rac1 {[%emt 0:07:59]} O-O {[%emt 0:04:06]} 13.
Rfe1 {[%emt 0:08:26]} Rfe8 {[%emt 0:24:01]} 14. Qd3 {[%emt 0:31:31]} Nc5 {
[%emt 0:07:00]} 15. Qb1 {[%emt 0:06:07]} e6 {[%emt 0:08:01]} 16. Rcd1 {[%emt 0:
02:38]} b5 {[%emt 0:09:10]} 17. e5 {[%emt 0:03:35]} Nfd7 {[%emt 0:08:02]} 18.
exd6 {[%emt 0:05:47]} Bxc3 {[%emt 0:01:05]} 0-1

[Event "XI Continental-ch America 2016"]
[Site "San Salvador"]
[Date "2016.05.28"]
[Round "1"]
[White "Blanco Perez, David"]
[Black "Cordova, Emilio"]
[Result "0-1"]
[ECO "B28"]
[WhiteElo "2112"]
[BlackElo "2602"]
[PlyCount "58"]
[EventDate "2016.??.??"]
[EventCountry "ESA"]
[TimeControl "40/5400+30:1800+30"]
[WhiteClock "0:43:53"]
[BlackClock "0:28:06"]

1. e4 {[%emt 0:01:39]} c5 {[%emt 0:00:00]} 2. Nf3 {[%emt 0:00:15]} a6 {[%emt 0:
00:00]} 3. d4 {[%emt 0:00:13]} cxd4 {[%emt 0:00:00]} 4. Nxd4 {[%emt 0:00:04]}
Nf6 {[%emt 0:00:00]} 5. Nc3 {[%emt 0:00:06]} e5 {[%emt 0:00:04]} 6. Nb3 {
[%emt 0:00:07]} Bb4 {[%emt 0:00:05]} 7. Bd2 {[%emt 0:04:28]} d6 {[%emt 0:06:05]
} 8. Bd3 {[%emt 0:01:38]} Bg4 {[%emt 0:00:38]} 9. f3 {[%emt 0:02:40]} Be6 {
[%emt 0:00:07]} 10. a3 {[%emt 0:00:16]} Bxc3 {[%emt 0:00:22]} 11. Bxc3 {
[%emt 0:00:07]} Nc6 {[%emt 0:00:45]} 12. Qd2 {[%emt 0:05:36]} O-O {[%emt 0:06:
30]} 13. Na5 {[%emt 0:07:44]} Nxa5 {[%emt 0:08:32]} 14. Bxa5 {[%emt 0:00:09]}
b6 {[%emt 0:00:07]} 15. Bc3 {[%emt 0:03:41]} Qc7 {[%emt 0:00:56]} 16. Qe2 {
[%emt 0:01:08]} b5 {[%emt 0:17:48]} 17. O-O {[%emt 0:04:16]} Nd7 {[%emt 0:00:
47]} 18. a4 {[%emt 0:01:37]} b4 {[%emt 0:02:58]} 19. Bd2 {[%emt 0:01:40]} Rfc8
{[%emt 0:01:17]} 20. Kh1 {[%emt 0:00:24]} a5 {[%emt 0:00:39]} 21. b3 {[%emt 0:
06:18]} Nc5 {[%emt 0:01:03]} 22. Bb5 {[%emt 0:02:19]} d5 {[%emt 0:09:07]} 23.
exd5 {[%emt 0:02:21]} Bxd5 {[%emt 0:00:10]} 24. Rac1 {[%emt 0:00:42]} Ne6 {
[%emt 0:10:18]} 25. c3 {[%emt 0:03:23]} Qd6 {[%emt 0:01:08]} 26. c4 {[%emt 0:
01:36]} Nd4 {[%emt 0:00:40]} 27. Qd1 {[%emt 0:03:41]} Be6 {[%emt 0:06:00]} 28.
Be3 {[%emt 0:01:33]} Rd8 {[%emt 0:00:05]} 29. Rf2 {[%emt 0:00:56]} Nxb5 {
[%emt 0:00:13]} 0-1

[Event "XI Continental-ch America 2016"]
[Site "San Salvador"]
[Date "2016.05.28"]
[Round "1"]
[White "Kovalyov, Anton"]
[Black "Melara, Moises"]
[Result "1-0"]
[ECO "E92"]
[WhiteElo "2602"]
[BlackElo "2007"]
[PlyCount "123"]
[EventDate "2016.??.??"]
[EventCountry "ESA"]
[TimeControl "40/5400+30:1800+30"]
[WhiteClock "1:21:18"]
[BlackClock "0:01:23"]

1. c4 {[%emt 0:00:00]} Nf6 {[%emt 0:02:10]} 2. Nc3 {[%emt 0:01:15]} g6 {
[%emt 0:01:25]} 3. Nf3 {[%emt 0:00:12]} Bg7 {[%emt 0:00:26]} 4. e4 {[%emt 0:00:
06]} d6 {[%emt 0:00:40]} 5. d4 {[%emt 0:00:06]} O-O {[%emt 0:00:25]} 6. Be2 {
[%emt 0:00:05]} e5 {[%emt 0:02:07]} 7. Be3 {[%emt 0:00:09]} Nc6 {[%emt 0:05:54]
} 8. d5 {[%emt 0:00:46]} Ne7 {[%emt 0:00:12]} 9. Nd2 {[%emt 0:00:04]} Nd7 {
[%emt 0:05:54]} 10. b4 {[%emt 0:00:25]} f5 {[%emt 0:00:43]} 11. f3 {[%emt 0:00:
05]} Nf6 {[%emt 0:12:24]} 12. c5 {[%emt 0:00:35]} a6 {[%emt 0:31:29]} 13. Nc4 {
[%emt 0:01:32]} f4 {[%emt 0:04:54]} 14. Bf2 {[%emt 0:02:46]} g5 {[%emt 0:00:55]
} 15. cxd6 {[%emt 0:02:47]} cxd6 {[%emt 0:00:12]} 16. Bb6 {[%emt 0:00:10]} Qd7
{[%emt 0:02:36]} 17. Rc1 {[%emt 0:01:46]} g4 {[%emt 0:01:29]} 18. fxg4 {
[%emt 0:00:32]} Nxg4 {[%emt 0:00:40]} 19. Bxg4 {[%emt 0:00:06]} Qxg4 {[%emt 0:
00:40]} 20. Qxg4 {[%emt 0:00:06]} Bxg4 {[%emt 0:00:10]} 21. h3 {[%emt 0:00:08]}
Bh5 {[%emt 0:01:17]} 22. Nxd6 {[%emt 0:00:13]} f3 {[%emt 0:03:15]} 23. g4 {
[%emt 0:00:08]} Bg6 {[%emt 0:04:14]} 24. Na4 {[%emt 0:01:11]} Rf4 {[%emt 0:01:
47]} 25. Be3 {[%emt 0:01:21]} Rxe4 {[%emt 0:01:21]} 26. Nxe4 {[%emt 0:00:13]}
Nxd5 {[%emt 0:00:29]} 27. Kf2 {[%emt 0:05:23]} Bxe4 {[%emt 0:00:49]} 28. Nc3 {
[%emt 0:00:42]} Nxc3 {[%emt 0:00:48]} 29. Rxc3 {[%emt 0:00:05]} Bc6 {[%emt 0:
02:24]} 30. Rd1 {[%emt 0:00:40]} e4 {[%emt 0:00:51]} 31. Rc5 {[%emt 0:00:17]}
Re8 {[%emt 0:02:53]} 32. Rf5 {[%emt 0:02:56]} Bf8 {[%emt 0:04:54]} 33. Rd4 {
[%emt 0:01:28]} Be7 {[%emt 0:01:50]} 34. Rh5 {[%emt 0:01:55]} Bf6 {[%emt 0:01:
34]} 35. Rd6 {[%emt 0:00:10]} Bc3 {[%emt 0:01:06]} 36. Rg5+ {[%emt 0:01:46]}
Kf8 {[%emt 0:00:51]} 37. Rh6 {[%emt 0:01:03]} Bxb4 {[%emt 0:01:45]} 38. Rxh7 {
[%emt 0:00:23]} Re7 {[%emt 0:00:19]} 39. Rxe7 {[%emt 0:00:42]} Bxe7 {[%emt 0:
00:08]} 40. Bc5 {[%emt 0:00:39]} Bxc5+ {[%emt 0:00:38]} 41. Rxc5 {[%emt 0:30:
06]} Kg7 {[%emt 0:30:36]} 42. Ke3 {[%emt 0:00:12]} Kg6 {[%emt 0:00:23]} 43. h4
{[%emt 0:00:10]} Bd7 {[%emt 0:01:03]} 44. Rd5 {[%emt 0:00:50]} Be6 {[%emt 0:00:
45]} 45. Rd6 {[%emt 0:01:22]} Kf7 {[%emt 0:00:13]} 46. g5 {[%emt 0:00:11]} Bxa2
{[%emt 0:00:44]} 47. Kxe4 {[%emt 0:00:11]} f2 {[%emt 0:00:19]} 48. Rf6+ {
[%emt 0:00:05]} Kg7 {[%emt 0:00:07]} 49. Rxf2 {[%emt 0:00:05]} Bb1+ {[%emt 0:
00:01]} 50. Ke5 {[%emt 0:00:15]} Bg6 {[%emt 0:01:34]} 51. Rf6 {[%emt 0:00:08]}
a5 {[%emt 0:00:20]} 52. Rb6 {[%emt 0:00:06]} a4 {[%emt 0:00:44]} 53. Rxb7+ {
[%emt 0:00:05]} Bf7 {[%emt 0:00:29]} 54. h5 {[%emt 0:00:06]} a3 {[%emt 0:00:22]
} 55. g6 {[%emt 0:00:06]} a2 {[%emt 0:00:17]} 56. Rxf7+ {[%emt 0:00:05]} Kh6 {
[%emt 0:00:13]} 57. Ra7 {[%emt 0:00:05]} a1=Q+ {[%emt 0:01:05]} 58. Rxa1 {
[%emt 0:00:05]} Kg5 {[%emt 0:00:17]} 59. g7 {[%emt 0:00:08]} Kh6 {[%emt 0:00:
25]} 60. g8=R {[%emt 0:00:16]} Kh7 {[%emt 0:00:12]} 61. Rag1 {[%emt 0:00:04]}
Kh6 {[%emt 0:00:20]} 62. Rh8# {[%emt 0:00:05]} 1-0

[Event "XI Continental-ch America 2016"]
[Site "San Salvador"]
[Date "2016.05.28"]
[Round "1"]
[White "Flores, Diego"]
[Black "Duarte, Juan"]
[Result "1-0"]
[ECO "A04"]
[WhiteElo "2592"]
[BlackElo "1988"]
[PlyCount "43"]
[EventDate "2016.??.??"]
[EventCountry "ESA"]
[TimeControl "40/5400+30:1800+30"]
[WhiteClock "0:48:26"]
[BlackClock "0:45:25"]

1. Nf3 {[%emt 0:00:05]} f5 {[%emt 0:01:10]} 2. d3 {[%emt 0:00:26]} g6 {[%emt 0:
00:09]} 3. e4 {[%emt 0:00:58]} d6 {[%emt 0:00:28]} 4. h4 {[%emt 0:06:48]} Bg7 {
[%emt 0:08:04]} 5. h5 {[%emt 0:02:40]} Nh6 {[%emt 0:01:28]} 6. Nc3 {[%emt 0:05:
13]} c6 {[%emt 0:02:41]} 7. d4 {[%emt 0:10:42]} Nf7 {[%emt 0:04:18]} 8. Bc4 {
[%emt 0:03:58]} e6 {[%emt 0:00:06]} 9. hxg6 {[%emt 0:15:53]} hxg6 {[%emt 0:02:
23]} 10. Rxh8+ {[%emt 0:00:13]} Bxh8 {[%emt 0:00:01]} 11. Qe2 {[%emt 0:00:54]}
fxe4 {[%emt 0:09:29]} 12. Qxe4 {[%emt 0:00:43]} d5 {[%emt 0:07:54]} 13. Qxg6 {
[%emt 0:00:10]} dxc4 {[%emt 0:00:09]} 14. Bg5 {[%emt 0:00:19]} Qd6 {[%emt 0:02:
51]} 15. Ne4 {[%emt 0:00:08]} Qf8 {[%emt 0:00:41]} 16. Ne5 {[%emt 0:00:23]}
Bxe5 {[%emt 0:09:26]} 17. dxe5 {[%emt 0:00:20]} Kd7 {[%emt 0:00:48]} 18. O-O-O+
{[%emt 0:00:14]} Kc7 {[%emt 0:00:04]} 19. Qxf7+ {[%emt 0:00:08]} Nd7 {[%emt 0:
00:01]} 20. Qxf8 {[%emt 0:02:03]} Nxf8 {[%emt 0:02:52]} 21. Bd8+ {[%emt 0:00:
08]} Kb8 {[%emt 0:00:02]} 22. Be7 {[%emt 0:00:08]} 1-0

[Event "XI Continental-ch America 2016"]
[Site "San Salvador"]
[Date "2016.05.29"]
[Round "2"]
[White "Cordova, Emilio"]
[Black "Arias, Lemnys"]
[Result "1/2-1/2"]
[ECO "A12"]
[WhiteElo "2602"]
[BlackElo "2309"]
[PlyCount "64"]
[EventDate "2016.??.??"]
[EventCountry "ESA"]
[TimeControl "40/5400+30:1800+30"]
[WhiteClock "0:03:43"]
[BlackClock "0:41:01"]

1. Nf3 {[%emt 0:00:00]} d5 {[%emt 0:00:00]} 2. c4 {[%emt 0:00:42]} c6 {[%emt 0:
00:02]} 3. b3 {[%emt 0:01:41]} Bg4 {[%emt 0:03:08]} 4. Bb2 {[%emt 0:02:42]} Nd7
{[%emt 0:00:19]} 5. e3 {[%emt 0:01:27]} e6 {[%emt 0:00:30]} 6. h3 {[%emt 0:08:
48]} Bh5 {[%emt 0:00:41]} 7. Be2 {[%emt 0:02:59]} Ngf6 {[%emt 0:02:31]} 8. cxd5
{[%emt 0:05:51]} exd5 {[%emt 0:00:24]} 9. g4 {[%emt 0:03:03]} Bg6 {[%emt 0:00:
11]} 10. d3 {[%emt 0:00:23]} h6 {[%emt 0:04:24]} 11. Nbd2 {[%emt 0:01:19]} a5 {
[%emt 0:02:35]} 12. a3 {[%emt 0:01:23]} Bd6 {[%emt 0:02:01]} 13. Rg1 {[%emt 0:
04:50]} a4 {[%emt 0:00:25]} 14. Nh4 {[%emt 0:03:47]} axb3 {[%emt 0:03:54]} 15.
Nxb3 {[%emt 0:01:01]} c5 {[%emt 0:06:50]} 16. a4 {[%emt 0:09:19]} Qe7 {[%emt 0:
09:42]} 17. Nd2 {[%emt 0:03:50]} Bh7 {[%emt 0:07:34]} 18. Qb3 {[%emt 0:02:57]}
Be5 {[%emt 0:02:14]} 19. Ndf3 {[%emt 0:07:26]} Bxb2 {[%emt 0:05:19]} 20. Qxb2 {
[%emt 0:00:04]} d4 {[%emt 0:00:03]} 21. e4 {[%emt 0:00:46]} c4 {[%emt 0:00:08]}
22. Nxd4 {[%emt 0:08:58]} cxd3 {[%emt 0:00:40]} 23. Ndf5 {[%emt 0:05:57]} Bxf5
{[%emt 0:01:45]} 24. Nxf5 {[%emt 0:00:11]} Qe5 {[%emt 0:02:35]} 25. Qxe5+ {
[%emt 0:00:06]} Nxe5 {[%emt 0:00:01]} 26. f4 Ng6 {[%emt 0:00:03]} 27. e5 {
[%emt 0:07:14]} Nd5 {[%emt 0:02:59]} 28. Bf3 {[%emt 0:00:42]} Ndxf4 {[%emt 0:
02:02]} 29. Bxb7 {[%emt 0:00:15]} Ra5 {[%emt 0:00:04]} 30. Bc6+ {[%emt 0:09:47]
} Kd8 {[%emt 0:00:24]} 31. Kd2 {[%emt 0:01:57]} Nxe5 {[%emt 0:00:15]} 32. Bh1 {
[%emt 0:02:52]} Kd7 {[%emt 0:01:16]} 1/2-1/2

[Event "XI Continental-ch America 2016"]
[Site "San Salvador"]
[Date "2016.05.29"]
[Round "2"]
[White "Valenzuela, Fernando"]
[Black "Mareco, Sandro"]
[Result "0-1"]
[ECO "E21"]
[WhiteElo "2409"]
[BlackElo "2625"]
[PlyCount "68"]
[EventDate "2016.??.??"]
[EventCountry "ESA"]
[TimeControl "40/5400+30:1800+30"]
[WhiteClock "0:00:43"]
[BlackClock "0:07:38"]

1. d4 {[%emt 0:01:30]} Nf6 {[%emt 0:00:00]} 2. c4 {[%emt 0:00:09]} e6 {[%emt 0:
00:00]} 3. Nc3 {[%emt 0:00:11]} Bb4 {[%emt 0:00:00]} 4. Nf3 {[%emt 0:00:17]} b6
{[%emt 0:00:00]} 5. e3 {[%emt 0:00:19]} Bb7 {[%emt 0:00:00]} 6. Bd3 {[%emt 0:
00:46]} O-O {[%emt 0:00:00]} 7. O-O {[%emt 0:00:18]} c5 {[%emt 0:00:04]} 8. Bd2
{[%emt 0:00:39]} cxd4 {[%emt 0:00:07]} 9. exd4 {[%emt 0:00:12]} d5 {[%emt 0:00:
03]} 10. cxd5 {[%emt 0:01:24]} Nxd5 {[%emt 0:00:15]} 11. a3 {[%emt 0:00:58]}
Be7 {[%emt 0:01:38]} 12. Re1 {[%emt 0:03:03]} Nd7 {[%emt 0:00:55]} 13. Qe2 {
[%emt 0:01:53]} h6 {[%emt 0:19:42]} 14. Ne4 {[%emt 0:16:11]} Rc8 {[%emt 0:02:
27]} 15. Ng3 {[%emt 0:12:13]} Rc7 {[%emt 0:02:38]} 16. Rad1 {[%emt 0:08:21]}
N7f6 {[%emt 0:15:54]} 17. Ne5 {[%emt 0:04:05]} Bd6 {[%emt 0:03:58]} 18. Bb1 {
[%emt 0:06:45]} Qc8 {[%emt 0:16:36]} 19. Nh5 {[%emt 0:07:45]} Re8 {[%emt 0:03:
56]} 20. Qf3 {[%emt 0:09:15]} Qd8 {[%emt 0:01:16]} 21. Nxg7 {[%emt 0:12:18]}
Kxg7 {[%emt 0:03:08]} 22. Qg3+ {[%emt 0:00:56]} Kh8 {[%emt 0:04:45]} 23. Bxh6 {
[%emt 0:01:35]} Nh5 {[%emt 0:11:17]} 24. Qh3 {[%emt 0:00:28]} Ndf6 {[%emt 0:01:
28]} 25. Bg5 {[%emt 0:06:22]} Kg8 {[%emt 0:00:04]} 26. Rd3 {[%emt 0:01:43]} Be4
{[%emt 0:03:19]} 27. Bxf6 {[%emt 0:03:09]} Qxf6 {[%emt 0:00:30]} 28. Ng4 {
[%emt 0:00:31]} Qg5 {[%emt 0:03:17]} 29. Qxh5 {[%emt 0:00:30]} Qxh5 {[%emt 0:
00:04]} 30. Nf6+ {[%emt 0:00:05]} Kf8 {[%emt 0:00:06]} 31. Nxh5 {[%emt 0:00:09]
} Bxd3 {[%emt 0:00:03]} 32. Bxd3 {[%emt 0:00:07]} Rd8 {[%emt 0:00:05]} 33. Be4
{[%emt 0:01:02]} Rc4 {[%emt 0:01:38]} 34. Nf6 {[%emt 0:01:08]} Rxd4 {[%emt 0:
00:09]} 0-1